[Event "Titled Tuesday Blitz April 12 Early 2022"]
[White "Zemlyanskii, Ivan"]
[Black "Jumabayev, Rinat"]
[WhiteFideId "24249971"]
[BlackFideId "13702661"]
[WhiteElo "1759"]
[BlackElo "2561"]
[Result "0-1"]
[Round "04"]
[TimeControl "180+1"]
[Date "2022.04.12"]
[WhiteClock "0:00:26"]
[BlackClock "0:00:13"]

1. d4 {[%clk 0:03:00]}  Nf6 {[%clk 0:02:59]} 2. c4 {[%clk 0:03:01]}  e6 {[%clk 0:03:00]} 3. Nf3 {[%clk 0:03:00]}  Bb4+ {[%clk 0:03:00]} 4. Bd2 {[%clk 0:03:00]}  c5 {[%clk 0:02:59]} 5. g3 {[%clk 0:02:58]}  b6 {[%clk 0:02:59]} 6. Bg2 {[%clk 0:02:58]}  Bb7 {[%clk 0:02:59]} 7. O-O {[%clk 0:02:58]}  O-O {[%clk 0:03:00]} 8. Bxb4 {[%clk 0:02:45]}  cxb4 {[%clk 0:03:01]} 9. a3 {[%clk 0:02:46]}  Na6 {[%clk 0:02:55]} 10. Nbd2 {[%clk 0:02:41]}  Qe7 {[%clk 0:02:55]} 11. Re1 {[%clk 0:02:36]}  d6 {[%clk 0:02:46]} 12. e4 {[%clk 0:02:37]}  e5 {[%clk 0:02:46]} 13. d5 {[%clk 0:02:32]}  Rfc8 {[%clk 0:02:38]} 14. Nh4 {[%clk 0:02:31]}  g6 {[%clk 0:02:38]} 15. Qe2 {[%clk 0:02:22]}  bxa3 {[%clk 0:02:36]} 16. Rxa3 {[%clk 0:02:21]}  Nb4 {[%clk 0:02:36]} 17. f4 {[%clk 0:02:07]}  Nc2 {[%clk 0:02:34]} 18. Rf3 {[%clk 0:01:59]}  Nxe1 {[%clk 0:02:27]} 19. Qxe1 {[%clk 0:02:00]}  exf4 {[%clk 0:02:24]} 20. gxf4 {[%clk 0:01:52]}  Nd7 {[%clk 0:01:55]} 21. e5 {[%clk 0:01:41]}  dxe5 {[%clk 0:01:52]} 22. f5 {[%clk 0:01:41]}  e4 {[%clk 0:01:51]} 23. Rf4 {[%clk 0:01:31]}  e3 {[%clk 0:01:44]} 24. Ne4 {[%clk 0:01:26]}  Rxc4 {[%clk 0:01:37]} 25. fxg6 {[%clk 0:01:18]}  hxg6 {[%clk 0:01:37]} 26. Qxe3 {[%clk 0:01:19]}  Re8 {[%clk 0:01:14]} 27. Qg3 {[%clk 0:01:03]}  Rc1+ {[%clk 0:00:49]} 28. Bf1 {[%clk 0:00:47]}  Bxd5 {[%clk 0:00:41]} 29. Nxg6 {[%clk 0:00:43]}  fxg6 {[%clk 0:00:41]} 30. Qxg6+ {[%clk 0:00:40]}  Qg7 {[%clk 0:00:42]} 31. Rg4 {[%clk 0:00:25]}  Qxg6 {[%clk 0:00:40]} 32. Rxg6+ {[%clk 0:00:26]}  Kh7 {[%clk 0:00:37]} 33. Rd6 {[%clk 0:00:27]}  Bxe4 {[%clk 0:00:33]} 34. Rxd7+ {[%clk 0:00:27]}  Kg6 {[%clk 0:00:33]} 35. Kf2 {[%clk 0:00:25]}  Rc2+ {[%clk 0:00:25]} 36. Ke3 {[%clk 0:00:25]}  Bf5+ {[%clk 0:00:24]} 37. Kf4 {[%clk 0:00:23]}  Rf2+ {[%clk 0:00:20]} 38. Kg3 {[%clk 0:00:23]}  Rxf1 {[%clk 0:00:20]} 39. Rd6+ {[%clk 0:00:24]}  Re6 {[%clk 0:00:20]} 40. Rd8 {[%clk 0:00:24]}  Rfe1 {[%clk 0:00:19]} 41. Kf2 {[%clk 0:00:23]}  Rb1 {[%clk 0:00:16]} 42. Kf3 {[%clk 0:00:21]}  Rxb2 {[%clk 0:00:16]} 43. h4 {[%clk 0:00:21]}  Rb3+ {[%clk 0:00:16]} 44. Kf2 {[%clk 0:00:21]}  Rc6 {[%clk 0:00:16]} 45. Rd2 {[%clk 0:00:17]}  Rc2 {[%clk 0:00:16]} 46. Rxc2 {[%clk 0:00:18]}  Bxc2 {[%clk 0:00:16]} 47. h5+ {[%clk 0:00:19]}  Kxh5 {[%clk 0:00:16]} 48. Ke2 {[%clk 0:00:20]}  Bf5 {[%clk 0:00:16]} 49. Kd2 {[%clk 0:00:21]}  Kg4 {[%clk 0:00:16]} 50. Kc1 {[%clk 0:00:22]}  Kf4 {[%clk 0:00:16]} 51. Kd2 {[%clk 0:00:23]}  Ke5 {[%clk 0:00:14]} 52. Ke1 {[%clk 0:00:24]}  Rf3 {[%clk 0:00:13]} 53. Ke2 {[%clk 0:00:24]}  Be4 {[%clk 0:00:13]} 54. Kd2 {[%clk 0:00:24]}  Kd4 {[%clk 0:00:14]} 55. Kc1 {[%clk 0:00:25]}  Kc3 {[%clk 0:00:13]} 56. Kd1 {[%clk 0:00:25]}  Bd3 {[%clk 0:00:13]} 57. Ke1 {[%clk 0:00:26]}  Rf1# {[%clk 0:00:13]} 0-1


[Site "https://www.chess.com"]

[Event "Titled Tuesday Blitz April 12 Early 2022"]
[White "Zia, Tahsin Tajwar"]
[Black "Murzin, Volodar"]
[WhiteFideId "10211888"]
[BlackFideId "44155573"]
[WhiteElo "1800"]
[BlackElo "2585"]
[Result "0-1"]
[Round "04"]
[TimeControl "180+1"]
[Date "2022.04.13"]
[WhiteClock "0:00:03"]
[BlackClock "0:00:05"]

1. d4 {[%clk 0:03:00]}  Nf6 {[%clk 0:02:42]} 2. c4 {[%clk 0:02:56]}  g6 {[%clk 0:02:42]} 3. g3 {[%clk 0:02:55]}  Bg7 {[%clk 0:02:42]} 4. Bg2 {[%clk 0:02:54]}  O-O {[%clk 0:02:43]} 5. Nc3 {[%clk 0:02:53]}  d6 {[%clk 0:02:30]} 6. Nf3 {[%clk 0:02:53]}  Nbd7 {[%clk 0:02:29]} 7. O-O {[%clk 0:02:51]}  e5 {[%clk 0:02:30]} 8. e4 {[%clk 0:02:50]}  c6 {[%clk 0:02:30]} 9. h3 {[%clk 0:02:50]}  Qb6 {[%clk 0:02:30]} 10. Re1 {[%clk 0:02:48]}  exd4 {[%clk 0:02:28]} 11. Nxd4 {[%clk 0:02:48]}  Ng4 {[%clk 0:02:25]} 12. Nce2 {[%clk 0:02:20]}  Nge5 {[%clk 0:02:18]} 13. b3 {[%clk 0:02:16]}  Nc5 {[%clk 0:02:16]} 14. Be3 {[%clk 0:02:13]}  a5 {[%clk 0:02:15]} 15. Rb1 {[%clk 0:01:57]}  Re8 {[%clk 0:02:09]} 16. Nc3 {[%clk 0:01:55]}  Qc7 {[%clk 0:01:45]} 17. Qc2 {[%clk 0:01:39]}  h5 {[%clk 0:01:39]} 18. Red1 {[%clk 0:01:30]}  Ned7 {[%clk 0:01:34]} 19. f4 {[%clk 0:01:22]}  Nf6 {[%clk 0:01:34]} 20. a3 {[%clk 0:01:16]}  Bd7 {[%clk 0:01:23]} 21. b4 {[%clk 0:01:15]}  axb4 {[%clk 0:01:20]} 22. axb4 {[%clk 0:01:16]}  Na6 {[%clk 0:01:04]} 23. Nf3 {[%clk 0:00:55]}  Nxe4 {[%clk 0:00:49]} 24. Nxe4 {[%clk 0:00:51]}  Rxe4 {[%clk 0:00:49]} 25. Qxe4 {[%clk 0:00:50]}  Bf5 {[%clk 0:00:49]} 26. Qxf5 {[%clk 0:00:44]}  gxf5 {[%clk 0:00:49]} 27. b5 {[%clk 0:00:40]}  Nc5 {[%clk 0:00:46]} 28. bxc6 {[%clk 0:00:35]}  bxc6 {[%clk 0:00:47]} 29. Nd4 {[%clk 0:00:34]}  Bxd4 {[%clk 0:00:43]} 30. Bxd4 {[%clk 0:00:35]}  Ne4 {[%clk 0:00:39]} 31. Rd3 {[%clk 0:00:21]}  f6 {[%clk 0:00:25]} 32. Be3 {[%clk 0:00:13]}  Qf7 {[%clk 0:00:12]} 33. Bxe4 {[%clk 0:00:10]}  fxe4 {[%clk 0:00:11]} 34. Rxd6 {[%clk 0:00:10]}  Qxc4 {[%clk 0:00:08]} 35. Rbd1 {[%clk 0:00:05]}  Qe2 {[%clk 0:00:06]} 36. Rd8+ {[%clk 0:00:04]}  Rxd8 {[%clk 0:00:05]} 37. Rxd8+ {[%clk 0:00:05]}  Kf7 {[%clk 0:00:06]} 38. Bd4 {[%clk 0:00:03]}  e3 {[%clk 0:00:05]} 39. f5 {[%clk 0:00:03]}  Qf2+ {[%clk 0:00:05]} 40. Kh1 {[%clk 0:00:04]}  Qf1+ {[%clk 0:00:06]} 41. Kh2 {[%clk 0:00:04]}  e2 {[%clk 0:00:06]} 42. Rd7+ {[%clk 0:00:04]}  Ke8 {[%clk 0:00:07]} 43. Rc7 {[%clk 0:00:01]}  e1=Q {[%clk 0:00:06]} 44. Rc8+ {[%clk 0:00:02]}  Kd7 {[%clk 0:00:05]} 45. Re8 {[%clk 0:00:03]}  Qh1# {[%clk 0:00:05]} 0-1


[Site "https://www.chess.com"]

[Event "Titled Tuesday Blitz April 12 Early 2022"]
[White "Zierk, Steven"]
[Black "Ezat, Mohamed"]
[WhiteFideId "2034255"]
[BlackFideId "10600906"]
[WhiteElo "2494"]
[BlackElo "2386"]
[Result "1-0"]
[Round "04"]
[TimeControl "180+1"]
[Date "2022.04.12"]
[WhiteClock "0:00:39"]
[BlackClock "0:00:06"]

1. d4 {[%clk 0:03:00]}  Nf6 {[%clk 0:02:59]} 2. c4 {[%clk 0:03:00]}  g6 {[%clk 0:02:59]} 3. Nc3 {[%clk 0:02:59]}  Bg7 {[%clk 0:03:00]} 4. e4 {[%clk 0:03:00]}  d6 {[%clk 0:03:00]} 5. Nf3 {[%clk 0:02:59]}  O-O {[%clk 0:03:00]} 6. Be2 {[%clk 0:03:00]}  e5 {[%clk 0:03:00]} 7. Be3 {[%clk 0:03:00]}  exd4 {[%clk 0:02:59]} 8. Nxd4 {[%clk 0:03:01]}  Re8 {[%clk 0:02:59]} 9. f3 {[%clk 0:03:02]}  c6 {[%clk 0:02:59]} 10. Bf2 {[%clk 0:03:02]}  d5 {[%clk 0:02:59]} 11. exd5 {[%clk 0:03:03]}  cxd5 {[%clk 0:03:00]} 12. O-O {[%clk 0:03:03]}  Nc6 {[%clk 0:03:00]} 13. c5 {[%clk 0:03:04]}  Re5 {[%clk 0:03:00]} 14. Bg3 {[%clk 0:02:46]}  Nh5 {[%clk 0:02:47]} 15. Bxe5 {[%clk 0:02:43]}  Bxe5 {[%clk 0:02:46]} 16. Nxc6 {[%clk 0:02:41]}  bxc6 {[%clk 0:02:41]} 17. f4 {[%clk 0:02:18]}  Nxf4 {[%clk 0:02:38]} 18. g3 {[%clk 0:02:17]}  Ne6 {[%clk 0:02:26]} 19. Rc1 {[%clk 0:02:12]}  Rb8 {[%clk 0:02:23]} 20. Qd2 {[%clk 0:02:09]}  Nxc5 {[%clk 0:02:06]} 21. b3 {[%clk 0:02:05]}  Ne6 {[%clk 0:02:03]} 22. Kh1 {[%clk 0:02:03]}  h5 {[%clk 0:02:01]} 23. Na4 {[%clk 0:02:00]}  h4 {[%clk 0:01:59]} 24. Qe3 {[%clk 0:01:57]}  Qd6 {[%clk 0:01:41]} 25. Rxc6 {[%clk 0:01:53]}  Qxc6 {[%clk 0:01:37]} 26. Qxe5 {[%clk 0:01:53]}  Qc7 {[%clk 0:01:37]} 27. Qxc7 {[%clk 0:01:51]}  Nxc7 {[%clk 0:01:36]} 28. gxh4 {[%clk 0:01:36]}  Kg7 {[%clk 0:01:25]} 29. Bf3 {[%clk 0:01:31]}  d4 {[%clk 0:01:25]} 30. Rd1 {[%clk 0:01:27]}  Ne6 {[%clk 0:01:24]} 31. Bd5 {[%clk 0:01:21]}  Bb7 {[%clk 0:01:24]} 32. Bxb7 {[%clk 0:01:21]}  Rxb7 {[%clk 0:01:25]} 33. Nb2 {[%clk 0:01:20]}  Rb5 {[%clk 0:01:23]} 34. Kg2 {[%clk 0:01:19]}  Re5 {[%clk 0:01:18]} 35. Rd2 {[%clk 0:01:16]}  Re4 {[%clk 0:01:17]} 36. Kg3 {[%clk 0:01:16]}  Re3+ {[%clk 0:01:16]} 37. Kg2 {[%clk 0:01:14]}  Re4 {[%clk 0:01:11]} 38. Kg3 {[%clk 0:01:14]}  Re3+ {[%clk 0:01:09]} 39. Kg2 {[%clk 0:01:14]}  Nf4+ {[%clk 0:01:03]} 40. Kf2 {[%clk 0:01:14]}  Rh3 {[%clk 0:00:56]} 41. Nc4 {[%clk 0:01:12]}  Rxh4 {[%clk 0:00:43]} 42. Kf3 {[%clk 0:01:08]}  Ne6 {[%clk 0:00:39]} 43. Rg2 {[%clk 0:01:01]}  Rh3+ {[%clk 0:00:37]} 44. Ke4 {[%clk 0:01:00]}  d3 {[%clk 0:00:33]} 45. Ne5 {[%clk 0:00:53]}  Rh4+ {[%clk 0:00:31]} 46. Ke3 {[%clk 0:00:53]}  Rh3+ {[%clk 0:00:29]} 47. Kd2 {[%clk 0:00:53]}  Nc5 {[%clk 0:00:25]} 48. Nc4 {[%clk 0:00:45]}  Ne4+ {[%clk 0:00:24]} 49. Ke1 {[%clk 0:00:45]}  f5 {[%clk 0:00:21]} 50. b4 {[%clk 0:00:44]}  Rh8 {[%clk 0:00:13]} 51. Kd1 {[%clk 0:00:42]}  Rb8 {[%clk 0:00:12]} 52. a3 {[%clk 0:00:41]}  Rc8 {[%clk 0:00:12]} 53. Ne5 {[%clk 0:00:41]}  d2 {[%clk 0:00:11]} 54. Rxg6+ {[%clk 0:00:41]}  Kh7 {[%clk 0:00:12]} 55. Rc6 {[%clk 0:00:41]}  Rd8 {[%clk 0:00:09]} 56. Rc7+ {[%clk 0:00:38]}  Kh6 {[%clk 0:00:08]} 57. Nf7+ {[%clk 0:00:38]}  Kh5 {[%clk 0:00:06]} 58. Nxd8 {[%clk 0:00:39]} 1-0


[Site "https://www.chess.com"]

[Event "Titled Tuesday Blitz April 12 Early 2022"]
[White "Allahverdiyeva, Ayan"]
[Black "Steil-Antoni, Fiona"]
[WhiteFideId "13412590"]
[BlackFideId "4001249"]
[WhiteElo "1910"]
[BlackElo "2059"]
[Result "0-1"]
[Round "05"]
[TimeControl "180+1"]
[Date "2022.04.13"]
[WhiteClock "0:00:02"]
[BlackClock "0:00:40"]

1. e4 {[%clk 0:02:53]}  e5 {[%clk 0:02:58]} 2. Nf3 {[%clk 0:02:52]}  Nc6 {[%clk 0:02:58]} 3. Bb5 {[%clk 0:02:52]}  a6 {[%clk 0:02:58]} 4. Ba4 {[%clk 0:02:53]}  d6 {[%clk 0:02:57]} 5. c3 {[%clk 0:02:52]}  Bd7 {[%clk 0:02:58]} 6. d4 {[%clk 0:02:52]}  Nge7 {[%clk 0:02:58]} 7. d5 {[%clk 0:02:48]}  Nb8 {[%clk 0:02:57]} 8. Bxd7+ {[%clk 0:02:48]}  Nxd7 {[%clk 0:02:56]} 9. c4 {[%clk 0:02:48]}  Ng6 {[%clk 0:02:56]} 10. Nc3 {[%clk 0:02:47]}  Be7 {[%clk 0:02:55]} 11. g3 {[%clk 0:02:47]}  O-O {[%clk 0:02:50]} 12. h4 {[%clk 0:02:47]}  f5 {[%clk 0:02:48]} 13. h5 {[%clk 0:02:40]}  Nh8 {[%clk 0:02:44]} 14. exf5 {[%clk 0:02:29]}  Rxf5 {[%clk 0:02:34]} 15. Ne4 {[%clk 0:02:29]}  Qe8 {[%clk 0:02:27]} 16. g4 {[%clk 0:02:19]}  Rf7 {[%clk 0:02:25]} 17. h6 {[%clk 0:02:09]}  Ng6 {[%clk 0:02:21]} 18. Nfg5 {[%clk 0:02:05]}  Bxg5 {[%clk 0:02:08]} 19. Nxg5 {[%clk 0:02:04]}  Nc5 {[%clk 0:01:39]} 20. Nxf7 {[%clk 0:01:11]}  Qxf7 {[%clk 0:01:40]} 21. hxg7 {[%clk 0:01:07]}  Kxg7 {[%clk 0:01:30]} 22. Bh6+ {[%clk 0:01:06]}  Kg8 {[%clk 0:01:30]} 23. Qe2 {[%clk 0:00:38]}  Nf4 {[%clk 0:01:28]} 24. Bxf4 {[%clk 0:00:38]}  Qxf4 {[%clk 0:01:29]} 25. b3 {[%clk 0:00:21]}  Ne4 {[%clk 0:01:26]} 26. Qe3 {[%clk 0:00:21]}  Qxg4 {[%clk 0:01:14]} 27. Qh3 {[%clk 0:00:08]}  Qg6 {[%clk 0:01:07]} 28. O-O-O {[%clk 0:00:06]}  Kh8 {[%clk 0:00:51]} 29. Rdg1 {[%clk 0:00:05]}  Qf7 {[%clk 0:00:51]} 30. Qh5 {[%clk 0:00:05]}  Qxh5 {[%clk 0:00:45]} 31. Rxh5 {[%clk 0:00:04]}  Rf8 {[%clk 0:00:45]} 32. Rgh1 {[%clk 0:00:04]}  Rf7 {[%clk 0:00:45]} 33. R1h2 {[%clk 0:00:03]}  Nc3 {[%clk 0:00:44]} 34. Kb2 {[%clk 0:00:03]}  Ne2 {[%clk 0:00:43]} 35. Rg5 {[%clk 0:00:02]}  Nf4 {[%clk 0:00:41]} 36. Rh4 {[%clk 0:00:02]}  Nd3+ {[%clk 0:00:39]} 37. Kc3 {[%clk 0:00:02]}  Nxf2 {[%clk 0:00:40]} 0-1


[Site "https://www.chess.com"]

[Event "Titled Tuesday Blitz April 12 Early 2022"]
[White "Ayushh, Ravikumar"]
[Black "Gu, Xiaobing"]
[WhiteFideId "35039482"]
[BlackFideId "8602611"]
[WhiteElo "1441"]
[BlackElo "2174"]
[Result "1-0"]
[Round "05"]
[TimeControl "180+1"]
[Date "2022.04.13"]
[WhiteClock "0:01:16"]
[BlackClock "0:00:44"]

1. e4 {[%clk 0:02:52]}  c5 {[%clk 0:02:54]} 2. Nf3 {[%clk 0:02:52]}  d6 {[%clk 0:02:52]} 3. d4 {[%clk 0:02:53]}  cxd4 {[%clk 0:02:52]} 4. Nxd4 {[%clk 0:02:54]}  Nf6 {[%clk 0:02:50]} 5. Nc3 {[%clk 0:02:54]}  a6 {[%clk 0:02:50]} 6. Be2 {[%clk 0:02:55]}  e5 {[%clk 0:02:48]} 7. Nb3 {[%clk 0:02:56]}  Be7 {[%clk 0:02:48]} 8. O-O {[%clk 0:02:56]}  O-O {[%clk 0:02:47]} 9. Be3 {[%clk 0:02:56]}  Be6 {[%clk 0:02:47]} 10. a4 {[%clk 0:02:56]}  Nc6 {[%clk 0:02:41]} 11. Qd2 {[%clk 0:02:53]}  Nb4 {[%clk 0:02:40]} 12. h3 {[%clk 0:02:51]}  d5 {[%clk 0:02:27]} 13. exd5 {[%clk 0:02:48]}  Nfxd5 {[%clk 0:02:23]} 14. Nxd5 {[%clk 0:02:48]}  Nxd5 {[%clk 0:02:23]} 15. Rfd1 {[%clk 0:02:49]}  Nxe3 {[%clk 0:02:22]} 16. Qxe3 {[%clk 0:02:50]}  Qc7 {[%clk 0:02:21]} 17. Bd3 {[%clk 0:02:46]}  f5 {[%clk 0:02:19]} 18. Rac1 {[%clk 0:02:38]}  e4 {[%clk 0:02:18]} 19. Bf1 {[%clk 0:02:37]}  Rad8 {[%clk 0:02:12]} 20. Nd4 {[%clk 0:02:35]}  Bc8 {[%clk 0:01:32]} 21. Qb3+ {[%clk 0:02:15]}  Kh8 {[%clk 0:01:31]} 22. Ne6 {[%clk 0:02:15]}  Bxe6 {[%clk 0:01:31]} 23. Qxe6 {[%clk 0:02:16]}  Bg5 {[%clk 0:01:24]} 24. Rxd8 {[%clk 0:01:53]}  Qxd8 {[%clk 0:01:23]} 25. Re1 {[%clk 0:01:50]}  Qd2 {[%clk 0:01:22]} 26. Re2 {[%clk 0:01:50]}  Qd1 {[%clk 0:01:16]} 27. Qb3 {[%clk 0:01:44]}  Rd8 {[%clk 0:01:04]} 28. Qxb7 {[%clk 0:01:25]}  Qc1 {[%clk 0:01:02]} 29. Qxa6 {[%clk 0:01:20]}  Rd1 {[%clk 0:01:00]} 30. Qc8+ {[%clk 0:01:17]}  Bd8 {[%clk 0:01:00]} 31. Re1 {[%clk 0:01:18]}  h6 {[%clk 0:00:44]} 32. Qxd8+ {[%clk 0:01:16]} 1-0


[Site "https://www.chess.com"]

[Event "Titled Tuesday Blitz April 12 Early 2022"]
[White "Barria Zuniga, Daniel"]
[Black "Marcziter, Dmitrii"]
[WhiteFideId "3400816"]
[BlackFideId "13900765"]
[WhiteElo "2414"]
[BlackElo "2155"]
[Result "0-1"]
[Round "05"]
[TimeControl "180+1"]
[Date "2022.04.13"]
[WhiteClock "0:00:07"]
[BlackClock "0:00:33"]

1. d4 {[%clk 0:02:59]}  Nf6 {[%clk 0:02:57]} 2. c4 {[%clk 0:02:58]}  g6 {[%clk 0:02:57]} 3. Nc3 {[%clk 0:02:58]}  Bg7 {[%clk 0:02:57]} 4. e4 {[%clk 0:02:57]}  d6 {[%clk 0:02:58]} 5. Be2 {[%clk 0:02:57]}  O-O {[%clk 0:02:59]} 6. Nf3 {[%clk 0:02:58]}  Na6 {[%clk 0:02:59]} 7. Nd2 {[%clk 0:02:57]}  c5 {[%clk 0:02:56]} 8. d5 {[%clk 0:02:56]}  e6 {[%clk 0:02:56]} 9. O-O {[%clk 0:02:56]}  Re8 {[%clk 0:02:56]} 10. dxe6 {[%clk 0:02:54]}  Bxe6 {[%clk 0:02:55]} 11. Nb3 {[%clk 0:02:54]}  Nb4 {[%clk 0:02:53]} 12. Bf4 {[%clk 0:02:52]}  Bf8 {[%clk 0:02:48]} 13. Qd2 {[%clk 0:02:52]}  Qb6 {[%clk 0:02:40]} 14. Nc1 {[%clk 0:02:19]}  Ng4 {[%clk 0:02:22]} 15. a3 {[%clk 0:02:05]}  Nc6 {[%clk 0:02:21]} 16. Nd5 {[%clk 0:02:03]}  Bxd5 {[%clk 0:02:12]} 17. cxd5 {[%clk 0:01:51]}  Nce5 {[%clk 0:02:11]} 18. Na2 {[%clk 0:01:18]}  Bg7 {[%clk 0:02:04]} 19. Nc3 {[%clk 0:01:18]}  a6 {[%clk 0:01:58]} 20. Rab1 {[%clk 0:01:17]}  Qc7 {[%clk 0:01:55]} 21. Rfc1 {[%clk 0:01:15]}  b5 {[%clk 0:01:54]} 22. b4 {[%clk 0:01:11]}  c4 {[%clk 0:01:54]} 23. a4 {[%clk 0:01:12]}  Qd7 {[%clk 0:01:51]} 24. axb5 {[%clk 0:01:10]}  axb5 {[%clk 0:01:51]} 25. h3 {[%clk 0:01:09]}  Nf6 {[%clk 0:01:50]} 26. Be3 {[%clk 0:01:07]}  Qb7 {[%clk 0:01:43]} 27. Bd4 {[%clk 0:01:06]}  Ned7 {[%clk 0:01:41]} 28. f3 {[%clk 0:01:02]}  Nh5 {[%clk 0:01:38]} 29. g4 {[%clk 0:00:53]}  Nf4 {[%clk 0:01:29]} 30. Bf1 {[%clk 0:00:51]}  Be5 {[%clk 0:01:27]} 31. Ra1 {[%clk 0:00:48]}  f5 {[%clk 0:01:21]} 32. gxf5 {[%clk 0:00:34]}  gxf5 {[%clk 0:01:20]} 33. exf5 {[%clk 0:00:34]}  Nf6 {[%clk 0:01:19]} 34. Bxe5 {[%clk 0:00:29]}  dxe5 {[%clk 0:01:17]} 35. Rxa8 {[%clk 0:00:26]}  Rxa8 {[%clk 0:01:15]} 36. Re1 {[%clk 0:00:25]}  N6xd5 {[%clk 0:01:04]} 37. Nxd5 {[%clk 0:00:18]}  Qxd5 {[%clk 0:01:01]} 38. Qxd5+ {[%clk 0:00:17]}  Nxd5 {[%clk 0:01:00]} 39. Rxe5 {[%clk 0:00:18]}  Rd8 {[%clk 0:01:00]} 40. Kf2 {[%clk 0:00:15]}  Kf7 {[%clk 0:00:53]} 41. f4 {[%clk 0:00:14]}  Nc3 {[%clk 0:00:44]} 42. Ke3 {[%clk 0:00:10]}  Rd1 {[%clk 0:00:41]} 43. Bg2 {[%clk 0:00:10]}  Rd3+ {[%clk 0:00:40]} 44. Kf2 {[%clk 0:00:10]}  Nd1+ {[%clk 0:00:38]} 45. Ke2 {[%clk 0:00:10]}  Nc3+ {[%clk 0:00:36]} 46. Kf2 {[%clk 0:00:10]}  Rd2+ {[%clk 0:00:36]} 47. Kg1 {[%clk 0:00:09]}  Ne2+ {[%clk 0:00:35]} 48. Kf1 {[%clk 0:00:08]}  Nxf4 {[%clk 0:00:35]} 49. Bf3 {[%clk 0:00:08]}  c3 {[%clk 0:00:34]} 50. Rxb5 {[%clk 0:00:07]}  c2 {[%clk 0:00:34]} 51. Rc5 {[%clk 0:00:07]}  Rd1+ {[%clk 0:00:34]} 52. Kf2 {[%clk 0:00:07]}  c1=Q {[%clk 0:00:33]} 53. Rxc1 {[%clk 0:00:06]}  Rxc1 {[%clk 0:00:34]} 54. Ke3 {[%clk 0:00:07]}  Nxh3 {[%clk 0:00:33]} 0-1


[Site "https://www.chess.com"]

[Event "Titled Tuesday Blitz April 12 Early 2022"]
[White "Bettalli, Francesco"]
[Black "Weetik, Vjacheslav"]
[WhiteFideId "2816453"]
[BlackFideId "4153472"]
[WhiteElo "2216"]
[BlackElo "2469"]
[Result "0-1"]
[Round "05"]
[TimeControl "180+1"]
[Date "2022.04.13"]
[WhiteClock "0:01:23"]
[BlackClock "0:00:16"]

1. d4 {[%clk 0:03:00]}  Nf6 {[%clk 0:02:57]} 2. Nc3 {[%clk 0:03:01]}  d5 {[%clk 0:02:56]} 3. Bf4 {[%clk 0:03:01]}  c5 {[%clk 0:02:56]} 4. e3 {[%clk 0:03:01]}  cxd4 {[%clk 0:02:55]} 5. exd4 {[%clk 0:03:02]}  a6 {[%clk 0:02:56]} 6. Nf3 {[%clk 0:03:02]}  Nc6 {[%clk 0:02:56]} 7. Be2 {[%clk 0:03:02]}  Bf5 {[%clk 0:02:47]} 8. O-O {[%clk 0:03:02]}  e6 {[%clk 0:02:46]} 9. h3 {[%clk 0:03:01]}  Bd6 {[%clk 0:02:43]} 10. Ne5 {[%clk 0:02:58]}  Qc7 {[%clk 0:02:34]} 11. Re1 {[%clk 0:02:54]}  O-O {[%clk 0:02:24]} 12. Bd3 {[%clk 0:02:54]}  Nxd4 {[%clk 0:02:20]} 13. Bg5 {[%clk 0:02:29]}  Bxe5 {[%clk 0:02:17]} 14. f4 {[%clk 0:02:29]}  Bxf4 {[%clk 0:02:02]} 15. Bxf6 {[%clk 0:02:30]}  gxf6 {[%clk 0:01:59]} 16. Bxf5 {[%clk 0:02:30]}  Nxf5 {[%clk 0:01:56]} 17. Qg4+ {[%clk 0:02:27]}  Kh8 {[%clk 0:01:56]} 18. Nxd5 {[%clk 0:02:27]}  Bh2+ {[%clk 0:01:53]} 19. Kh1 {[%clk 0:02:27]}  exd5 {[%clk 0:01:06]} 20. Qxf5 {[%clk 0:02:27]}  Be5 {[%clk 0:01:07]} 21. Rad1 {[%clk 0:02:23]}  Rad8 {[%clk 0:01:02]} 22. c3 {[%clk 0:02:21]}  Rg8 {[%clk 0:01:00]} 23. Rd3 {[%clk 0:02:18]}  Rg5 {[%clk 0:00:56]} 24. Qf3 {[%clk 0:02:18]}  Rdg8 {[%clk 0:00:55]} 25. g4 {[%clk 0:02:17]}  Qb6 {[%clk 0:00:47]} 26. Rxd5 {[%clk 0:02:12]}  Qxb2 {[%clk 0:00:43]} 27. Rexe5 {[%clk 0:01:44]}  fxe5 {[%clk 0:00:39]} 28. Qf6+ {[%clk 0:01:44]}  R5g7 {[%clk 0:00:40]} 29. Rd8 {[%clk 0:01:45]}  Qc1+ {[%clk 0:00:24]} 30. Kg2 {[%clk 0:01:44]}  Qg5 {[%clk 0:00:17]} 31. Rxg8+ {[%clk 0:01:33]}  Kxg8 {[%clk 0:00:18]} 32. Qd6 {[%clk 0:01:33]}  h6 {[%clk 0:00:16]} 33. Qb8+ {[%clk 0:01:29]}  Kh7 {[%clk 0:00:16]} 34. Qxb7 {[%clk 0:01:30]}  Qf4 {[%clk 0:00:15]} 35. Qb1+ {[%clk 0:01:30]}  e4 {[%clk 0:00:16]} 36. Qc2 {[%clk 0:01:23]}  f5 {[%clk 0:00:16]} 0-1


[Site "https://www.chess.com"]

[Event "Titled Tuesday Blitz April 12 Early 2022"]
[White "Bilan, Danila"]
[Black "Tsyhanchuk, Stanislav"]
[WhiteFideId "24161918"]
[BlackFideId "13505130"]
[WhiteElo "2164"]
[BlackElo "2078"]
[Result "1-0"]
[Round "05"]
[TimeControl "180+1"]
[Date "2022.04.13"]
[WhiteClock "0:00:03"]
[BlackClock "0:00:01"]

1. d4 {[%clk 0:02:59]}  Nf6 {[%clk 0:02:50]} 2. Nf3 {[%clk 0:02:59]}  c5 {[%clk 0:02:48]} 3. e3 {[%clk 0:02:57]}  g6 {[%clk 0:02:48]} 4. Bc4 {[%clk 0:02:54]}  Bg7 {[%clk 0:02:47]} 5. c3 {[%clk 0:02:54]}  a6 {[%clk 0:02:45]} 6. a4 {[%clk 0:02:54]}  b6 {[%clk 0:02:44]} 7. O-O {[%clk 0:02:54]}  O-O {[%clk 0:02:44]} 8. Nbd2 {[%clk 0:02:51]}  Bb7 {[%clk 0:02:44]} 9. Qe2 {[%clk 0:02:51]}  d5 {[%clk 0:02:43]} 10. Bd3 {[%clk 0:02:50]}  Ne4 {[%clk 0:02:42]} 11. c4 {[%clk 0:02:35]}  cxd4 {[%clk 0:02:38]} 12. Nxd4 {[%clk 0:02:27]}  e5 {[%clk 0:02:34]} 13. Bxe4 {[%clk 0:02:03]}  exd4 {[%clk 0:02:20]} 14. Bxd5 {[%clk 0:01:56]}  Bxd5 {[%clk 0:02:12]} 15. cxd5 {[%clk 0:01:56]}  Qxd5 {[%clk 0:02:08]} 16. exd4 {[%clk 0:01:44]}  Nc6 {[%clk 0:02:07]} 17. Nf3 {[%clk 0:01:40]}  Nxd4 {[%clk 0:01:06]} 18. Nxd4 {[%clk 0:01:36]}  Qxd4 {[%clk 0:01:07]} 19. Be3 {[%clk 0:01:29]}  Qb4 {[%clk 0:01:06]} 20. Rab1 {[%clk 0:00:49]}  b5 {[%clk 0:01:03]} 21. axb5 {[%clk 0:00:46]}  axb5 {[%clk 0:01:04]} 22. b3 {[%clk 0:00:46]}  Rfe8 {[%clk 0:01:00]} 23. Qf3 {[%clk 0:00:44]}  Rac8 {[%clk 0:00:56]} 24. g3 {[%clk 0:00:31]}  h5 {[%clk 0:00:55]} 25. h4 {[%clk 0:00:28]}  Rc3 {[%clk 0:00:52]} 26. Qd5 {[%clk 0:00:11]}  Qg4 {[%clk 0:00:44]} 27. Bf4 {[%clk 0:00:05]}  b4 {[%clk 0:00:31]} 28. Rbe1 {[%clk 0:00:03]}  Rxe1 {[%clk 0:00:06]} 29. Rxe1 {[%clk 0:00:03]}  Qc8 {[%clk 0:00:07]} 30. Re7 {[%clk 0:00:02]}  Qf8 {[%clk 0:00:05]} 31. Rb7 {[%clk 0:00:02]}  Qe8 {[%clk 0:00:02]} 32. Rb8 {[%clk 0:00:03]}  Rc8 {[%clk 0:00:03]} 33. Rxc8 {[%clk 0:00:03]}  Qxc8 {[%clk 0:00:03]} 34. Kg2 {[%clk 0:00:03]}  Bf8 {[%clk 0:00:03]} 35. Qe4 {[%clk 0:00:03]}  Qc3 {[%clk 0:00:04]} 36. Qd5 {[%clk 0:00:03]}  Qc2 {[%clk 0:00:04]} 37. Be5 {[%clk 0:00:03]}  Qf5 {[%clk 0:00:03]} 38. Qd4 {[%clk 0:00:03]}  Qe6 {[%clk 0:00:03]} 39. Bf4 {[%clk 0:00:03]}  Qxb3 {[%clk 0:00:04]} 40. Qf6 {[%clk 0:00:03]}  Qc3 {[%clk 0:00:03]} 41. Be5 {[%clk 0:00:03]}  Qc4 {[%clk 0:00:01]} 42. Qh8# {[%clk 0:00:03]} 1-0


[Site "https://www.chess.com"]